[Event "Titled Tuesday Blitz November 22 Early 2022"]
[White "Seo, Jung Min"]
[Black "Bilych, Olexiy"]
[WhiteFideId "1734687"]
[BlackFideId "14156504"]
[WhiteElo "2455"]
[BlackElo "2320"]
[Result "1-0"]
[Round "06"]
[TimeControl "180+1"]
[Date "2022.11.22"]
[WhiteClock "0:00:19"]
[BlackClock "0:00:02"]

1. e4 {[%clk 0:02:59]}  e5 {[%clk 0:02:59]} 2. Nf3 {[%clk 0:02:59]}  Nc6 {[%clk 0:03:00]} 3. Bb5 {[%clk 0:02:59]}  a6 {[%clk 0:03:00]} 4. Ba4 {[%clk 0:03:00]}  Nge7 {[%clk 0:03:01]} 5. d4 {[%clk 0:02:58]}  exd4 {[%clk 0:02:59]} 6. Nxd4 {[%clk 0:02:59]}  Nxd4 {[%clk 0:02:55]} 7. Qxd4 {[%clk 0:02:59]}  b5 {[%clk 0:02:54]} 8. Bb3 {[%clk 0:02:59]}  Bb7 {[%clk 0:02:54]} 9. O-O {[%clk 0:02:57]}  Ng6 {[%clk 0:02:55]} 10. c4 {[%clk 0:02:55]}  Bd6 {[%clk 0:02:46]} 11. Nc3 {[%clk 0:02:46]}  Qh4 {[%clk 0:02:38]} 12. g3 {[%clk 0:02:41]}  Qh5 {[%clk 0:02:37]} 13. Qxg7 {[%clk 0:02:27]}  O-O-O {[%clk 0:02:12]} 14. Qh6 {[%clk 0:02:25]}  Qf3 {[%clk 0:01:58]} 15. Bd1 {[%clk 0:02:19]}  Qd3 {[%clk 0:01:57]} 16. Be2 {[%clk 0:02:18]}  Qd4 {[%clk 0:01:57]} 17. cxb5 {[%clk 0:02:14]}  axb5 {[%clk 0:01:54]} 18. Be3 {[%clk 0:02:11]}  Qe5 {[%clk 0:01:45]} 19. Nxb5 {[%clk 0:01:59]}  Bc5 {[%clk 0:01:39]} 20. Nc3 {[%clk 0:01:50]}  f5 {[%clk 0:01:34]} 21. Bxc5 {[%clk 0:01:49]}  Qxc5 {[%clk 0:01:33]} 22. exf5 {[%clk 0:01:40]}  Ne5 {[%clk 0:01:32]} 23. Qe3 {[%clk 0:01:37]}  Qc6 {[%clk 0:01:27]} 24. f3 {[%clk 0:01:37]}  Rde8 {[%clk 0:01:25]} 25. Qf2 {[%clk 0:01:36]}  Rhf8 {[%clk 0:01:24]} 26. Nb5 {[%clk 0:01:28]}  Kd8 {[%clk 0:00:55]} 27. Rac1 {[%clk 0:01:26]}  Qh6 {[%clk 0:00:26]} 28. Rxc7 {[%clk 0:01:18]}  Bc6 {[%clk 0:00:26]} 29. Qb6 {[%clk 0:01:11]}  Ke7 {[%clk 0:00:25]} 30. Qc5+ {[%clk 0:00:55]}  Kd8 {[%clk 0:00:26]} 31. Qb6 {[%clk 0:00:45]}  Ke7 {[%clk 0:00:26]} 32. Nd4 {[%clk 0:00:37]}  Qe3+ {[%clk 0:00:24]} 33. Rf2 {[%clk 0:00:36]}  Kf6 {[%clk 0:00:18]} 34. Qb4 {[%clk 0:00:32]}  Qc1+ {[%clk 0:00:08]} 35. Bf1 {[%clk 0:00:31]}  Nd3 {[%clk 0:00:04]} 36. Qd2 {[%clk 0:00:24]}  Qxd2 {[%clk 0:00:02]} 37. Rxd2 {[%clk 0:00:24]}  Ne5 {[%clk 0:00:02]} 38. f4 {[%clk 0:00:23]}  Ng4 {[%clk 0:00:02]} 39. Nxc6 {[%clk 0:00:23]}  dxc6 {[%clk 0:00:03]} 40. Rxc6+ {[%clk 0:00:23]}  Kg7 {[%clk 0:00:03]} 41. h3 {[%clk 0:00:21]}  Ne3 {[%clk 0:00:03]} 42. Rd7+ {[%clk 0:00:21]}  Kh8 {[%clk 0:00:03]} 43. Rcc7 {[%clk 0:00:20]}  Nxf1 {[%clk 0:00:02]} 44. Rxh7+ {[%clk 0:00:19]}  Kg8 {[%clk 0:00:02]} 45. Rcg7# {[%clk 0:00:19]} 1-0


[Site "https://www.chess.com"]

[Event "Titled Tuesday Blitz November 22 Early 2022"]
[White "Shuvalova, Polina"]
[Black "Tologon tegin, Semetei"]
[WhiteFideId "24171760"]
[BlackFideId "13800574"]
[WhiteElo "2342"]
[BlackElo "2282"]
[Result "0-1"]
[Round "06"]
[TimeControl "180+1"]
[Date "2022.11.23"]
[WhiteClock "0:00:03"]
[BlackClock "0:00:39"]

1. d4 {[%clk 0:03:00]}  Nf6 {[%clk 0:02:52]} 2. Nf3 {[%clk 0:03:00]}  e6 {[%clk 0:02:51]} 3. Bf4 {[%clk 0:02:57]}  c5 {[%clk 0:02:51]} 4. e3 {[%clk 0:02:56]}  cxd4 {[%clk 0:02:52]} 5. exd4 {[%clk 0:02:54]}  b6 {[%clk 0:02:52]} 6. c3 {[%clk 0:02:53]}  Ba6 {[%clk 0:02:52]} 7. Bxa6 {[%clk 0:02:51]}  Nxa6 {[%clk 0:02:52]} 8. O-O {[%clk 0:02:51]}  Nc7 {[%clk 0:02:52]} 9. a4 {[%clk 0:02:51]}  d6 {[%clk 0:02:51]} 10. Re1 {[%clk 0:02:49]}  Be7 {[%clk 0:02:51]} 11. Na3 {[%clk 0:02:48]}  O-O {[%clk 0:02:50]} 12. Qe2 {[%clk 0:02:46]}  Nfd5 {[%clk 0:02:50]} 13. Bg3 {[%clk 0:02:44]}  Qd7 {[%clk 0:02:49]} 14. Nc2 {[%clk 0:02:42]}  a6 {[%clk 0:02:48]} 15. Nd2 {[%clk 0:02:36]}  b5 {[%clk 0:02:48]} 16. axb5 {[%clk 0:02:25]}  axb5 {[%clk 0:02:49]} 17. h3 {[%clk 0:02:25]}  h6 {[%clk 0:02:47]} 18. Qd3 {[%clk 0:02:11]}  Qc6 {[%clk 0:02:43]} 19. Nf1 {[%clk 0:01:59]}  Rfb8 {[%clk 0:02:36]} 20. Nd2 {[%clk 0:01:58]}  Ra4 {[%clk 0:02:26]} 21. Rac1 {[%clk 0:01:51]}  Ra2 {[%clk 0:02:24]} 22. Rb1 {[%clk 0:01:40]}  Rba8 {[%clk 0:02:11]} 23. h4 {[%clk 0:01:36]}  Ne8 {[%clk 0:01:53]} 24. Nb3 {[%clk 0:01:11]}  Nef6 {[%clk 0:01:49]} 25. Nc1 {[%clk 0:01:07]}  R2a7 {[%clk 0:01:47]} 26. Nb3 {[%clk 0:01:07]}  Nh5 {[%clk 0:01:42]} 27. Nd2 {[%clk 0:01:05]}  Nxg3 {[%clk 0:01:36]} 28. fxg3 {[%clk 0:01:02]}  Qb7 {[%clk 0:01:33]} 29. Kh2 {[%clk 0:01:01]}  Rc8 {[%clk 0:01:30]} 30. Rf1 {[%clk 0:00:58]}  Nf6 {[%clk 0:01:27]} 31. Kh3 {[%clk 0:00:55]}  d5 {[%clk 0:01:27]} 32. b4 {[%clk 0:00:46]}  Qd7 {[%clk 0:01:19]} 33. Kh2 {[%clk 0:00:41]}  Bd6 {[%clk 0:01:18]} 34. Kh1 {[%clk 0:00:23]}  Qc6 {[%clk 0:01:03]} 35. Rf3 {[%clk 0:00:22]}  Ne4 {[%clk 0:01:02]} 36. Rbf1 {[%clk 0:00:13]}  Ra2 {[%clk 0:01:00]} 37. Rxf7 {[%clk 0:00:10]}  Nxg3+ {[%clk 0:00:59]} 38. Kg1 {[%clk 0:00:08]}  Nxf1 {[%clk 0:00:58]} 39. Rxf1 {[%clk 0:00:08]}  Qxc3 {[%clk 0:00:54]} 40. Qg6 {[%clk 0:00:07]}  Qxc2 {[%clk 0:00:54]} 41. Qxe6+ {[%clk 0:00:06]}  Kh7 {[%clk 0:00:52]} 42. Qxd6 {[%clk 0:00:04]}  Qxd2 {[%clk 0:00:52]} 43. Qxd5 {[%clk 0:00:05]}  Qe3+ {[%clk 0:00:46]} 44. Kh1 {[%clk 0:00:04]}  Rf2 {[%clk 0:00:41]} 45. Rg1 {[%clk 0:00:02]}  Rc1 {[%clk 0:00:39]} 46. Rxc1 {[%clk 0:00:01]}  Qxc1+ {[%clk 0:00:39]} 47. Kh2 {[%clk 0:00:02]}  Qf4+ {[%clk 0:00:39]} 48. Kh3 {[%clk 0:00:03]}  Qf5+ {[%clk 0:00:38]} 49. Qxf5+ {[%clk 0:00:03]}  Rxf5 {[%clk 0:00:39]} 0-1


[Site "https://www.chess.com"]

[Event "Titled Tuesday Blitz November 22 Early 2022"]
[White "Simonovic, Miroslav"]
[Black "Manon-og, Ramon Jr."]
[WhiteFideId "919152"]
[BlackFideId "5200776"]
[WhiteElo "2043"]
[BlackElo "2323"]
[Result "1-0"]
[Round "06"]
[TimeControl "180+1"]
[Date "2022.11.23"]
[WhiteClock "0:00:58"]
[BlackClock "0:00:17"]

1. d4 {[%clk 0:02:56]}  Nf6 {[%clk 0:02:59]} 2. Bg5 {[%clk 0:02:55]}  e6 {[%clk 0:02:59]} 3. e4 {[%clk 0:02:55]}  h6 {[%clk 0:02:59]} 4. Bxf6 {[%clk 0:02:55]}  Qxf6 {[%clk 0:02:55]} 5. e5 {[%clk 0:02:55]}  Qd8 {[%clk 0:02:55]} 6. f4 {[%clk 0:02:55]}  c5 {[%clk 0:02:55]} 7. d5 {[%clk 0:02:55]}  exd5 {[%clk 0:02:54]} 8. Qxd5 {[%clk 0:02:55]}  Qb6 {[%clk 0:02:54]} 9. Qb3 {[%clk 0:02:51]}  Nc6 {[%clk 0:02:50]} 10. Nd2 {[%clk 0:02:45]}  Nd4 {[%clk 0:02:45]} 11. Qxb6 {[%clk 0:02:40]}  axb6 {[%clk 0:02:46]} 12. Bd3 {[%clk 0:02:39]}  d6 {[%clk 0:02:42]} 13. Ngf3 {[%clk 0:02:31]}  dxe5 {[%clk 0:02:38]} 14. fxe5 {[%clk 0:02:18]}  Nc6 {[%clk 0:02:36]} 15. a3 {[%clk 0:02:05]}  Be7 {[%clk 0:02:36]} 16. O-O-O {[%clk 0:02:04]}  O-O {[%clk 0:02:34]} 17. Ne4 {[%clk 0:02:03]}  Be6 {[%clk 0:02:26]} 18. Nd6 {[%clk 0:02:02]}  Nxe5 {[%clk 0:02:20]} 19. Nxb7 {[%clk 0:01:53]}  Nxf3 {[%clk 0:01:45]} 20. gxf3 {[%clk 0:01:54]}  Ra7 {[%clk 0:01:43]} 21. Be4 {[%clk 0:01:51]}  f5 {[%clk 0:01:42]} 22. Bc6 {[%clk 0:01:49]}  Bg5+ {[%clk 0:01:25]} 23. Kb1 {[%clk 0:01:48]}  Bf6 {[%clk 0:01:21]} 24. Rhe1 {[%clk 0:01:44]}  Bf7 {[%clk 0:01:17]} 25. Nd6 {[%clk 0:01:43]}  Bg6 {[%clk 0:01:12]} 26. Bb5 {[%clk 0:01:27]}  Kh7 {[%clk 0:01:03]} 27. Bd3 {[%clk 0:01:26]}  Bh4 {[%clk 0:00:56]} 28. Re6 {[%clk 0:01:12]}  Rd7 {[%clk 0:00:53]} 29. Nb5 {[%clk 0:01:03]}  Rfd8 {[%clk 0:00:33]} 30. Rf1 {[%clk 0:01:02]}  c4 {[%clk 0:00:26]} 31. Bxc4 {[%clk 0:01:01]}  Rd1+ {[%clk 0:00:15]} 32. Rxd1 {[%clk 0:01:00]}  Rxd1+ {[%clk 0:00:16]} 33. Ka2 {[%clk 0:01:00]}  Bf7 {[%clk 0:00:16]} 34. Rc6 {[%clk 0:00:58]}  Bxc4+ {[%clk 0:00:16]} 35. Rxc4 {[%clk 0:00:59]}  Rd2 {[%clk 0:00:17]} 36. Rxh4 {[%clk 0:00:58]} 1-0


[Site "https://www.chess.com"]

[Event "Titled Tuesday Blitz November 22 Early 2022"]
[White "Stankovic, Ivan G"]
[Black "Viskelis, Darius"]
[WhiteFideId "902837"]
[BlackFideId "12800830"]
[WhiteElo "2226"]
[BlackElo "2025"]
[Result "1-0"]
[Round "06"]
[TimeControl "180+1"]
[Date "2022.11.23"]
[WhiteClock "0:01:32"]
[BlackClock "0:00:06"]

1. e4 {[%clk 0:03:00]}  c5 {[%clk 0:02:59]} 2. c4 {[%clk 0:03:00]}  Nc6 {[%clk 0:02:57]} 3. Nc3 {[%clk 0:03:01]}  g6 {[%clk 0:02:57]} 4. g3 {[%clk 0:03:02]}  Bg7 {[%clk 0:02:57]} 5. Bg2 {[%clk 0:03:03]}  Nd4 {[%clk 0:02:57]} 6. d3 {[%clk 0:03:02]}  e6 {[%clk 0:02:57]} 7. Nge2 {[%clk 0:03:02]}  Ne7 {[%clk 0:02:57]} 8. Rb1 {[%clk 0:03:02]}  Nec6 {[%clk 0:02:57]} 9. a3 {[%clk 0:03:03]}  a5 {[%clk 0:02:56]} 10. O-O {[%clk 0:03:03]}  O-O {[%clk 0:02:55]} 11. Be3 {[%clk 0:03:04]}  d6 {[%clk 0:02:47]} 12. Nb5 {[%clk 0:03:04]}  Nxb5 {[%clk 0:02:41]} 13. cxb5 {[%clk 0:03:05]}  Nd4 {[%clk 0:02:42]} 14. Nxd4 {[%clk 0:03:03]}  Bxd4 {[%clk 0:02:33]} 15. Bxd4 {[%clk 0:03:03]}  cxd4 {[%clk 0:02:34]} 16. a4 {[%clk 0:03:00]}  e5 {[%clk 0:02:34]} 17. Qb3 {[%clk 0:02:56]}  Be6 {[%clk 0:02:32]} 18. Qa3 {[%clk 0:02:56]}  Qd7 {[%clk 0:02:16]} 19. b4 {[%clk 0:02:56]}  Rfc8 {[%clk 0:02:10]} 20. Rbc1 {[%clk 0:02:52]}  axb4 {[%clk 0:01:52]} 21. Qxb4 {[%clk 0:02:51]}  b6 {[%clk 0:01:52]} 22. f4 {[%clk 0:02:44]}  f6 {[%clk 0:01:26]} 23. f5 {[%clk 0:02:40]}  Bf7 {[%clk 0:01:22]} 24. fxg6 {[%clk 0:02:40]}  hxg6 {[%clk 0:01:09]} 25. Rxc8+ {[%clk 0:02:39]}  Rxc8 {[%clk 0:01:01]} 26. Rxf6 {[%clk 0:02:39]}  Rc5 {[%clk 0:01:00]} 27. h4 {[%clk 0:02:31]}  Kg7 {[%clk 0:01:00]} 28. Rf2 {[%clk 0:02:27]}  Qg4 {[%clk 0:00:54]} 29. Kh2 {[%clk 0:02:26]}  Qd1 {[%clk 0:00:51]} 30. a5 {[%clk 0:02:10]}  Qxd3 {[%clk 0:00:32]} 31. a6 {[%clk 0:01:48]}  Qxb5 {[%clk 0:00:32]} 32. Qa3 {[%clk 0:01:42]}  Qa5 {[%clk 0:00:28]} 33. Qf3 {[%clk 0:01:34]}  Rc7 {[%clk 0:00:19]} 34. Qf6+ {[%clk 0:01:34]}  Kh7 {[%clk 0:00:14]} 35. Qxd6 {[%clk 0:01:33]}  Ra7 {[%clk 0:00:06]} 36. Qf8 {[%clk 0:01:32]} 1-0


[Site "https://www.chess.com"]

[Event "Titled Tuesday Blitz November 22 Early 2022"]
[White "Stefanova, Antoaneta"]
[Black "Gonzalez Vega, Alejandro"]
[WhiteFideId "2902257"]
[BlackFideId "3510042"]
[WhiteElo "2426"]
[BlackElo "2278"]
[Result "1-0"]
[Round "06"]
[TimeControl "180+1"]
[Date "2022.11.23"]
[WhiteClock "0:00:10"]
[BlackClock "0:00:02"]

1. e4 {[%clk 0:03:00]}  c5 {[%clk 0:02:59]} 2. Nf3 {[%clk 0:02:59]}  a6 {[%clk 0:02:58]} 3. g3 {[%clk 0:02:57]}  b5 {[%clk 0:02:57]} 4. Bg2 {[%clk 0:02:57]}  Bb7 {[%clk 0:02:57]} 5. Qe2 {[%clk 0:02:57]}  d6 {[%clk 0:02:56]} 6. O-O {[%clk 0:02:55]}  e5 {[%clk 0:02:55]} 7. c3 {[%clk 0:02:53]}  Nf6 {[%clk 0:02:54]} 8. d3 {[%clk 0:02:51]}  Be7 {[%clk 0:02:54]} 9. Nbd2 {[%clk 0:02:50]}  O-O {[%clk 0:02:54]} 10. d4 {[%clk 0:02:50]}  Qc7 {[%clk 0:02:53]} 11. d5 {[%clk 0:02:42]}  h6 {[%clk 0:02:50]} 12. Nh4 {[%clk 0:02:40]}  Re8 {[%clk 0:02:49]} 13. Nf5 {[%clk 0:02:31]}  Bf8 {[%clk 0:02:49]} 14. Nf3 {[%clk 0:02:29]}  Nbd7 {[%clk 0:02:43]} 15. h3 {[%clk 0:02:28]}  c4 {[%clk 0:02:39]} 16. g4 {[%clk 0:02:26]}  Nc5 {[%clk 0:02:38]} 17. Ne1 {[%clk 0:02:14]}  Bc8 {[%clk 0:01:57]} 18. f3 {[%clk 0:01:56]}  Nh7 {[%clk 0:01:50]} 19. Be3 {[%clk 0:01:51]}  Rb8 {[%clk 0:01:25]} 20. Kh1 {[%clk 0:01:44]}  g5 {[%clk 0:01:07]} 21. h4 {[%clk 0:01:37]}  Bxf5 {[%clk 0:01:04]} 22. gxf5 {[%clk 0:01:37]}  f6 {[%clk 0:01:03]} 23. Rg1 {[%clk 0:01:33]}  Re7 {[%clk 0:01:01]} 24. Bh3 {[%clk 0:01:31]}  Rg7 {[%clk 0:01:00]} 25. Bg4 {[%clk 0:01:31]}  Be7 {[%clk 0:00:59]} 26. Qh2 {[%clk 0:01:20]}  Nf8 {[%clk 0:00:58]} 27. Nc2 {[%clk 0:01:11]}  a5 {[%clk 0:00:56]} 28. a3 {[%clk 0:01:08]}  Nd3 {[%clk 0:00:54]} 29. Rab1 {[%clk 0:01:08]}  Bd8 {[%clk 0:00:44]} 30. Kg2 {[%clk 0:01:07]}  Qf7 {[%clk 0:00:38]} 31. hxg5 {[%clk 0:01:05]}  hxg5 {[%clk 0:00:35]} 32. Rh1 {[%clk 0:01:04]}  Rh7 {[%clk 0:00:34]} 33. Qg3 {[%clk 0:01:00]}  Rb7 {[%clk 0:00:28]} 34. Rxh7 {[%clk 0:00:54]}  Nxh7 {[%clk 0:00:28]} 35. b4 {[%clk 0:00:49]}  a4 {[%clk 0:00:26]} 36. Rh1 {[%clk 0:00:46]}  Qg7 {[%clk 0:00:24]} 37. Bh5 {[%clk 0:00:42]}  Nf4+ {[%clk 0:00:16]} 38. Bxf4 {[%clk 0:00:37]}  gxf4 {[%clk 0:00:16]} 39. Qxg7+ {[%clk 0:00:31]}  Rxg7+ {[%clk 0:00:15]} 40. Kf1 {[%clk 0:00:31]}  Ng5 {[%clk 0:00:15]} 41. Ne1 {[%clk 0:00:27]}  Bb6 {[%clk 0:00:15]} 42. Be8 {[%clk 0:00:26]}  Be3 {[%clk 0:00:14]} 43. Bxb5 {[%clk 0:00:26]}  Bd2 {[%clk 0:00:15]} 44. Bxc4 {[%clk 0:00:24]}  Bxc3 {[%clk 0:00:14]} 45. Bb5 {[%clk 0:00:24]}  Bb2 {[%clk 0:00:14]} 46. Bxa4 {[%clk 0:00:23]}  Bxa3 {[%clk 0:00:14]} 47. b5 {[%clk 0:00:22]}  Bc5 {[%clk 0:00:14]} 48. Bd1 {[%clk 0:00:21]}  Ra7 {[%clk 0:00:12]} 49. Be2 {[%clk 0:00:19]}  Ra1 {[%clk 0:00:12]} 50. Kg2 {[%clk 0:00:18]}  Rb1 {[%clk 0:00:12]} 51. Nc2 {[%clk 0:00:17]}  Rb2 {[%clk 0:00:11]} 52. Bd3 {[%clk 0:00:17]}  Kg7 {[%clk 0:00:10]} 53. Rd1 {[%clk 0:00:16]}  Nf7 {[%clk 0:00:10]} 54. Kf1 {[%clk 0:00:14]}  Nd8 {[%clk 0:00:09]} 55. Ra1 {[%clk 0:00:13]}  Kh6 {[%clk 0:00:08]} 56. Ke2 {[%clk 0:00:12]}  Nf7 {[%clk 0:00:06]} 57. Kd2 {[%clk 0:00:11]}  Ng5 {[%clk 0:00:05]} 58. Be2 {[%clk 0:00:11]}  Kg7 {[%clk 0:00:04]} 59. Ra8 {[%clk 0:00:10]}  Kh6 {[%clk 0:00:02]} 60. Rc8 {[%clk 0:00:10]} 1-0


[Site "https://www.chess.com"]

[Event "Titled Tuesday Blitz November 22 Early 2022"]
[White "Stribuk, Artiom"]
[Black "Sarana, Alexey"]
[WhiteFideId "13515659"]
[BlackFideId "24133795"]
[WhiteElo "2371"]
[BlackElo "2708"]
[Result "0-1"]
[Round "06"]
[TimeControl "180+1"]
[Date "2022.11.22"]
[WhiteClock "0:00:06"]
[BlackClock "0:01:08"]

1. Nf3 {[%clk 0:03:00]}  d5 {[%clk 0:03:00]} 2. g3 {[%clk 0:03:00]}  g6 {[%clk 0:02:57]} 3. Bg2 {[%clk 0:02:59]}  Bg7 {[%clk 0:02:57]} 4. d4 {[%clk 0:02:59]}  c6 {[%clk 0:02:57]} 5. O-O {[%clk 0:02:58]}  Nf6 {[%clk 0:02:57]} 6. b3 {[%clk 0:02:57]}  O-O {[%clk 0:02:57]} 7. Bb2 {[%clk 0:02:57]}  Ne4 {[%clk 0:02:52]} 8. Nbd2 {[%clk 0:02:50]}  Nxd2 {[%clk 0:02:48]} 9. Qxd2 {[%clk 0:02:47]}  Nd7 {[%clk 0:02:49]} 10. c4 {[%clk 0:02:43]}  Nf6 {[%clk 0:02:49]} 11. e3 {[%clk 0:02:38]}  Qb6 {[%clk 0:02:48]} 12. Rfc1 {[%clk 0:02:32]}  Bf5 {[%clk 0:02:46]} 13. Ba3 {[%clk 0:02:21]}  Ne4 {[%clk 0:02:45]} 14. Qe2 {[%clk 0:02:19]}  Qa5 {[%clk 0:02:36]} 15. Bxe7 {[%clk 0:01:58]}  Rfe8 {[%clk 0:02:35]} 16. Bh4 {[%clk 0:01:59]}  h6 {[%clk 0:02:23]} 17. h3 {[%clk 0:01:55]}  g5 {[%clk 0:02:22]} 18. g4 {[%clk 0:01:48]}  Bg6 {[%clk 0:02:21]} 19. Bg3 {[%clk 0:01:39]}  Nxg3 {[%clk 0:02:21]} 20. fxg3 {[%clk 0:01:40]}  Rad8 {[%clk 0:02:21]} 21. cxd5 {[%clk 0:01:34]}  Rxd5 {[%clk 0:02:16]} 22. Qf2 {[%clk 0:01:25]}  Rd6 {[%clk 0:02:14]} 23. Rc5 {[%clk 0:01:21]}  Qa3 {[%clk 0:02:12]} 24. Ne5 {[%clk 0:00:47]}  Bxe5 {[%clk 0:02:01]} 25. Rxe5 {[%clk 0:00:48]}  Rxe5 {[%clk 0:02:00]} 26. dxe5 {[%clk 0:00:48]}  Re6 {[%clk 0:02:01]} 27. Rd1 {[%clk 0:00:48]}  Qe7 {[%clk 0:01:59]} 28. Qd2 {[%clk 0:00:42]}  Rxe5 {[%clk 0:01:58]} 29. Qd8+ {[%clk 0:00:42]}  Kg7 {[%clk 0:01:58]} 30. Qxe7 {[%clk 0:00:40]}  Rxe7 {[%clk 0:01:59]} 31. Kf2 {[%clk 0:00:40]}  Kf6 {[%clk 0:01:54]} 32. h4 {[%clk 0:00:38]}  Ke6 {[%clk 0:01:48]} 33. Bf1 {[%clk 0:00:35]}  Rd7 {[%clk 0:01:46]} 34. Bc4+ {[%clk 0:00:34]}  Ke7 {[%clk 0:01:47]} 35. Rxd7+ {[%clk 0:00:34]}  Kxd7 {[%clk 0:01:48]} 36. h5 {[%clk 0:00:35]}  Bb1 {[%clk 0:01:48]} 37. b4 {[%clk 0:00:28]}  f6 {[%clk 0:01:47]} 38. a3 {[%clk 0:00:27]}  Kd6 {[%clk 0:01:47]} 39. Ke2 {[%clk 0:00:26]}  Be4 {[%clk 0:01:46]} 40. Kd2 {[%clk 0:00:23]}  Bf3 {[%clk 0:01:45]} 41. Be2 {[%clk 0:00:23]}  Bxe2 {[%clk 0:01:12]} 42. Kxe2 {[%clk 0:00:24]}  c5 {[%clk 0:01:13]} 43. Kd3 {[%clk 0:00:17]}  cxb4 {[%clk 0:01:13]} 44. axb4 {[%clk 0:00:18]}  a6 {[%clk 0:01:12]} 45. Ke4 {[%clk 0:00:11]}  b6 {[%clk 0:01:09]} 46. Kf5 {[%clk 0:00:11]}  Ke7 {[%clk 0:01:05]} 47. Kg6 {[%clk 0:00:11]}  a5 {[%clk 0:01:06]} 48. bxa5 {[%clk 0:00:08]}  bxa5 {[%clk 0:01:07]} 49. Kxh6 {[%clk 0:00:09]}  Kf7 {[%clk 0:01:07]} 50. e4 {[%clk 0:00:05]}  a4 {[%clk 0:01:08]} 51. e5 {[%clk 0:00:06]}  a3 {[%clk 0:01:09]} 52. e6+ {[%clk 0:00:06]}  Kxe6 {[%clk 0:01:08]} 53. Kg7 {[%clk 0:00:06]}  a2 {[%clk 0:01:08]} 54. h6 {[%clk 0:00:07]}  a1=Q {[%clk 0:01:09]} 55. h7 {[%clk 0:00:08]}  f5+ {[%clk 0:01:09]} 56. Kg8 {[%clk 0:00:09]}  f4 {[%clk 0:01:08]} 57. gxf4 {[%clk 0:00:07]}  gxf4 {[%clk 0:01:09]} 58. g5 {[%clk 0:00:06]}  Kf5 {[%clk 0:01:08]} 0-1


[Site "https://www.chess.com"]

[Event "Titled Tuesday Blitz November 22 Early 2022"]
[White "Svane, Rasmus"]
[Black "Tang, Andrew"]
[WhiteFideId "4657101"]
[BlackFideId "2059630"]
[WhiteElo "2674"]
[BlackElo "2581"]
[Result "1-0"]
[Round "06"]
[TimeControl "180+1"]
[Date "2022.11.22"]
[WhiteClock "0:00:09"]
[BlackClock "0:00:02"]

1. Nf3 {[%clk 0:02:56]}  d5 {[%clk 0:03:00]} 2. g3 {[%clk 0:02:56]}  Bg4 {[%clk 0:02:55]} 3. Bg2 {[%clk 0:02:56]}  Nd7 {[%clk 0:02:55]} 4. h3 {[%clk 0:02:56]}  Bh5 {[%clk 0:02:55]} 5. d4 {[%clk 0:02:57]}  e6 {[%clk 0:02:54]} 6. c4 {[%clk 0:02:57]}  c6 {[%clk 0:02:54]} 7. cxd5 {[%clk 0:02:41]}  exd5 {[%clk 0:02:50]} 8. Nc3 {[%clk 0:02:42]}  Bd6 {[%clk 0:02:26]} 9. Nh4 {[%clk 0:02:29]}  Ne7 {[%clk 0:02:01]} 10. g4 {[%clk 0:02:29]}  Bg6 {[%clk 0:01:59]} 11. f4 {[%clk 0:02:30]}  h5 {[%clk 0:01:47]} 12. e3 {[%clk 0:02:09]}  f5 {[%clk 0:00:58]} 13. g5 {[%clk 0:01:55]}  Bf7 {[%clk 0:00:55]} 14. Bd2 {[%clk 0:01:53]}  g6 {[%clk 0:00:51]} 15. Nf3 {[%clk 0:01:50]}  Nc8 {[%clk 0:00:42]} 16. O-O {[%clk 0:01:49]}  Be7 {[%clk 0:00:41]} 17. Ne2 {[%clk 0:01:44]}  Nd6 {[%clk 0:00:40]} 18. Bb4 {[%clk 0:01:43]}  Nb6 {[%clk 0:00:26]} 19. b3 {[%clk 0:01:37]}  Nbc8 {[%clk 0:00:21]} 20. Nc1 {[%clk 0:01:36]}  a5 {[%clk 0:00:20]} 21. Bc5 {[%clk 0:01:33]}  O-O {[%clk 0:00:19]} 22. Nd3 {[%clk 0:01:33]}  Re8 {[%clk 0:00:19]} 23. Nde5 {[%clk 0:01:34]}  Bf8 {[%clk 0:00:19]} 24. Qc2 {[%clk 0:01:33]}  Bg7 {[%clk 0:00:20]} 25. Rae1 {[%clk 0:01:33]}  Ne4 {[%clk 0:00:20]} 26. Ba3 {[%clk 0:01:33]}  Qc7 {[%clk 0:00:19]} 27. Bb2 {[%clk 0:01:32]}  Kh7 {[%clk 0:00:19]} 28. a4 {[%clk 0:01:30]}  Ncd6 {[%clk 0:00:19]} 29. Nh4 {[%clk 0:01:29]}  Qd8 {[%clk 0:00:19]} 30. Qd1 {[%clk 0:01:28]}  Re6 {[%clk 0:00:20]} 31. Bf3 {[%clk 0:01:25]}  Be8 {[%clk 0:00:20]} 32. Kh2 {[%clk 0:01:23]}  Qb6 {[%clk 0:00:20]} 33. Re2 {[%clk 0:01:16]}  Rc8 {[%clk 0:00:20]} 34. Rg2 {[%clk 0:01:16]}  Rc7 {[%clk 0:00:20]} 35. Ba3 {[%clk 0:01:02]}  Nc3 {[%clk 0:00:13]} 36. Qc2 {[%clk 0:01:00]}  Nce4 {[%clk 0:00:13]} 37. Bc5 {[%clk 0:01:00]}  Qa6 {[%clk 0:00:14]} 38. Rfg1 {[%clk 0:00:58]}  b6 {[%clk 0:00:14]} 39. Bxd6 {[%clk 0:00:57]}  Rxd6 {[%clk 0:00:13]} 40. Bxh5 {[%clk 0:00:54]}  gxh5 {[%clk 0:00:12]} 41. Nxf5 {[%clk 0:00:54]}  Re6 {[%clk 0:00:11]} 42. Nxg7 {[%clk 0:00:53]}  Kxg7 {[%clk 0:00:11]} 43. f5 {[%clk 0:00:53]}  Rd6 {[%clk 0:00:10]} 44. f6+ {[%clk 0:00:53]}  Kg8 {[%clk 0:00:10]} 45. Qd1 {[%clk 0:00:41]}  Qc8 {[%clk 0:00:10]} 46. f7+ {[%clk 0:00:37]}  Bxf7 {[%clk 0:00:07]} 47. g6 {[%clk 0:00:38]}  Be8 {[%clk 0:00:08]} 48. Qxh5 {[%clk 0:00:36]}  Rf6 {[%clk 0:00:07]} 49. Ng4 {[%clk 0:00:33]}  Qe6 {[%clk 0:00:04]} 50. Qh4 {[%clk 0:00:20]}  Rg7 {[%clk 0:00:04]} 51. Nh6+ {[%clk 0:00:12]}  Kf8 {[%clk 0:00:04]} 52. Ng4 {[%clk 0:00:13]}  Rfxg6 {[%clk 0:00:04]} 53. Rf1+ {[%clk 0:00:13]}  Bf7 {[%clk 0:00:03]} 54. Qd8+ {[%clk 0:00:10]}  Qe8 {[%clk 0:00:03]} 55. Qxb6 {[%clk 0:00:11]}  Kg8 {[%clk 0:00:03]} 56. Rfg1 {[%clk 0:00:09]}  Kh7 {[%clk 0:00:02]} 57. Qc7 {[%clk 0:00:09]}  Be6 {[%clk 0:00:02]} 58. Qe5 {[%clk 0:00:09]}  Qd7 {[%clk 0:00:02]} 59. Qh5+ {[%clk 0:00:09]}  Kg8 {[%clk 0:00:03]} 60. Nh6+ {[%clk 0:00:10]}  Rxh6 {[%clk 0:00:01]} 61. Rxg7+ {[%clk 0:00:10]}  Qxg7 {[%clk 0:00:02]} 62. Qxh6 {[%clk 0:00:09]} 1-0


[Site "https://www.chess.com"]